bitfinex/quotes_SOLUSD_20250626
["timestamp","ask_amount","ask_price","bid_price","bid_amount"]
[1750931710427,5.11714116,143.92,143.91,88.72]
[1750931710627,5.11714116,143.93,143.91,88.72]
[1750931710854,5.11714116,143.92,143.91,88.72]
[1750931711050,5.11714116,143.93,143.91,88.72]
[1750931711247,6.39642645,143.94,143.91,88.72]
[1750931711248,5.11714116,143.92,143.91,88.72]
[1750931711446,5.11714116,143.93,143.91,88.72]
[1750931711754,5.11714116,143.92,143.91,95.12]
[1750931711955,5.11714116,143.93,143.91,95.12]
[1750931712250,5.11714116,143.92,143.91,95.12]
[1750931717853,5.11714116,143.93,143.91,95.12]
[1750931718056,5.15582066,143.95,143.92,49.09854886]
[1750931718353,5.15582066,143.95,143.93,18.64964886]
[1750931718544,6.39642645,143.97,143.93,18.64964886]
[1750931718545,5.15582066,143.96,143.93,18.64964886]
[1750931718737,5.15582066,143.95,143.93,107.34964886]
[1750931718936,5.15582066,143.96,143.93,107.34964886]
[1750931719340,5.15582066,143.97,143.93,107.34964886]
[1750931719549,5.15582066,143.96,143.93,107.34964886]
[1750931719739,5.15582066,143.97,143.93,107.34964886]
[1750931719940,5.15582066,143.96,143.93,107.34964886]
[1750931720141,5.15582066,143.97,143.93,107.34964886]
[1750931722157,5.15582066,143.98,143.93,107.34964886]
[1750931722359,5.15582066,143.98,143.93,136.22964886]
[1750931722660,5.15582066,143.97,143.93,136.22964886]
[1750931722862,5.15582066,143.96,143.93,107.34964886]
[1750931723545,5.15582066,143.96,143.93,88.7]
[1750931723743,5.15582066,143.95,143.93,88.7]
[1750931725950,11.55224711,143.95,143.93,88.7]
[1750931726153,6.39642645,143.95,143.93,88.7]
[1750931726354,11.55224711,143.95,143.93,88.7]
[1750931726553,6.39642645,143.95,143.93,88.7]
[1750931726751,11.55224711,143.95,143.93,88.7]
[1750931726954,11.55224711,143.96,143.93,88.7]
[1750931727160,5.15582066,143.95,143.93,88.7]
[1750931729371,0.14216157,143.96,143.93,88.7]
[1750931729572,5.29798223,143.96,143.93,88.7]
[1750931729770,5.15582066,143.96,143.93,88.7]
[1750931731967,11.55224711,143.98,143.94,18.64964886]
[1750931732166,5.15582066,143.97,143.94,136.20964886]
[1750931732367,5.15582066,143.97,143.94,137.79154886]
[1750931732561,5.15582066,143.98,143.94,137.79154886]
[1750931733271,11.55224711,143.98,143.94,137.79154886]
[1750931733972,5.15582066,143.97,143.94,137.79154886]
[1750931734175,5.15582066,143.97,143.94,108.93154886]
[1750931734369,11.55224711,143.98,143.94,108.93154886]
[1750931735272,5.15582066,143.97,143.94,90.2819]
[1750931735458,5.15582066,143.96,143.94,88.7]
[1750931735652,11.55224711,143.96,143.94,88.7]
[1750931735857,6.39642645,143.96,143.94,88.7]
[1750931736057,11.55224711,143.96,143.94,88.7]
[1750931736281,5.15582066,143.95,143.94,88.7]
[1750931736452,5.15582066,143.95,143.91,25.06964886]
[1750931739283,5.15582066,143.95,143.91,6.42]
[1750931739580,6.39642645,143.96,143.91,6.42]
[1750931739581,11.55224711,143.94,143.91,6.42]
[1750931739878,5.15582066,143.93,143.91,6.42]
[1750931744586,8.67073017,143.96,143.91,6.42]
[1750931744784,0.14216157,143.96,143.91,6.42]
[1750931746296,0.14216157,143.95,143.91,6.42]
[1750931747282,0.14216157,143.95,143.91,95.12]
[1750931752175,0.14216157,143.97,143.91,95.12]
[1750931754706,0.14216157,143.98,143.91,95.12]
[1750931760418,18.79181043,143.98,143.91,95.12]
[1750931764225,0.14216157,143.93,143.91,95.12]
[1750931764517,6.57896577,143.93,143.91,6.42]
[1750931764904,5.14944336,143.92,143.91,6.42]
[1750931767209,5.14944336,143.92,143.91,0.02]
[1750931771240,5.29160493,143.92,143.91,0.02]
[1750931771437,11.72840913,143.92,143.91,0.02]
[1750931778242,11.72840913,143.92,143.89,95.08]
[1750931778243,5.29160493,143.92,143.89,95.08]
[1750931778427,11.58932728,143.91,143.89,95.08]
[1750931778626,5.14944336,143.9,143.89,95.08]
[1750931784832,11.58932728,143.9,143.89,95.08]
[1750931785019,5.29160493,143.9,143.89,95.08]
[1750931786415,0.14216157,143.89,143.87,0.02]
[1750931786634,5.14944336,143.88,143.87,0.02]
[1750931787432,5.14944336,143.9,143.87,107.36964886]
[1750931787833,5.14944336,143.91,143.87,107.36964886]
[1750931788017,5.14944336,143.9,143.87,107.36964886]
[1750931788219,5.14944336,143.91,143.87,107.36964886]
[1750931788436,5.14944336,143.9,143.87,107.36964886]
[1750931788624,5.14944336,143.91,143.87,107.36964886]
[1750931788943,5.14944336,143.9,143.87,107.36964886]
[1750931789114,5.14944336,143.91,143.87,136.16964886]
[1750931789313,5.14944336,143.9,143.87,136.16964886]
[1750931789518,5.14944336,143.91,143.87,136.16964886]
[1750931789736,5.14944336,143.9,143.87,136.16964886]
[1750931790045,5.14944336,143.91,143.87,136.16964886]
[1750931790343,5.14944336,143.9,143.87,136.16964886]
[1750931790641,5.14944336,143.91,143.87,136.16964886]
[1750931790840,5.14944336,143.9,143.87,136.16964886]
[1750931791142,5.14944336,143.91,143.87,136.16964886]
[1750931791340,5.14944336,143.9,143.87,136.16964886]
[1750931791652,5.14944336,143.91,143.87,136.16964886]
[1750931791820,5.14944336,143.9,143.87,136.16964886]
[1750931792016,5.14944336,143.91,143.87,136.16964886]
[1750931792229,5.14944336,143.9,143.87,136.16964886]
[1750931792530,5.14944336,143.91,143.87,136.16964886]
[1750931792729,5.14944336,143.9,143.87,136.16964886]
[1750931792931,5.14944336,143.91,143.87,136.16964886]
[1750931793130,5.14944336,143.9,143.87,136.16964886]
[1750931793341,5.14944336,143.91,143.87,136.16964886]
[1750931793547,5.14944336,143.9,143.87,136.16964886]
[1750931793722,5.14944336,143.91,143.87,136.16964886]
[1750931793922,5.14944336,143.9,143.87,136.16964886]
[1750931794122,5.14944336,143.91,143.88,6.36]
[1750931794338,5.14944336,143.9,143.88,6.36]
[1750931794643,5.14944336,143.91,143.88,95.06]
[1750931794847,5.14944336,143.9,143.88,95.06]
[1750931795022,5.14944336,143.91,143.88,95.06]
[1750931795223,5.14944336,143.9,143.88,95.06]
[1750931795423,5.14944336,143.91,143.88,95.06]
[1750931795623,5.14944336,143.9,143.88,95.06]
[1750931795826,5.14944336,143.89,143.88,95.06]
[1750931796125,5.14944336,143.91,143.88,95.06]
[1750931796458,11.59830011,143.9,143.88,95.06]
[1750931796756,5.14944336,143.89,143.88,95.06]
[1750931797652,11.59830011,143.89,143.88,95.06]
[1750931800650,11.59830011,143.89,143.88,6.36]
[1750931800838,5.14944336,143.89,143.88,6.36]
[1750931801337,5.14944336,143.9,143.88,6.36]
[1750931801540,5.14944336,143.89,143.88,6.36]
[1750931801727,5.14944336,143.9,143.88,6.36]
[1750931801927,5.14944336,143.89,143.88,6.36]
[1750931802144,5.14944336,143.9,143.88,6.36]
[1750931802336,5.14944336,143.89,143.88,6.36]
[1750931802647,5.14944336,143.9,143.88,6.36]
[1750931802849,5.14944336,143.89,143.88,6.36]
[1750931803036,5.14944336,143.9,143.88,6.36]
[1750931803346,5.14944336,143.89,143.88,6.36]
[1750931803553,5.14944336,143.9,143.88,6.36]
[1750931803728,5.14944336,143.89,143.88,6.36]
[1750931803928,5.14944336,143.9,143.88,6.36]
[1750931804138,5.14944336,143.89,143.88,6.36]
[1750931804450,11.59830011,143.9,143.88,6.36]
[1750931804661,5.14944336,143.89,143.88,6.36]
[1750931806259,5.14944336,143.89,143.88,35.14]
[1750931806458,5.14944336,143.89,143.88,123.84]
[1750931811856,5.14944336,143.9,143.88,123.84]
[1750931812031,5.14944336,143.89,143.88,123.84]
[1750931812227,5.14944336,143.9,143.88,123.84]
[1750931812432,5.14944336,143.89,143.88,123.84]
[1750931816438,5.14944336,143.89,143.88,142.48964886]
[1750931817756,5.14944336,143.9,143.89,18.64964886]
[1750931818351,5.14944336,143.9,143.89,107.34964886]
[1750931820761,5.14944336,143.9,143.89,88.7]
[1750931821737,5.14944336,143.9,143.88,6.36]
[1750931821945,5.14944336,143.89,143.88,6.36]
[1750931822242,11.59830011,143.89,143.88,6.36]
[1750931822859,10.31165147,143.89,143.88,6.36]
[1750931825356,3.86279472,143.89,143.88,6.36]
[1750931827060,4.00495629,143.89,143.88,6.36]
[1750931827251,10.45381304,143.89,143.88,6.36]
[1750931827646,4.00495629,143.89,143.88,6.36]
[1750931828051,10.45381304,143.89,143.88,6.36]
[1750931830173,10.45381304,143.89,143.87,0.02]
[1750931830474,6.59101832,143.89,143.87,0.02]
[1750931832378,0.14216157,143.89,143.87,0.02]
[1750931832859,6.59101832,143.89,143.87,0.02]
[1750931834382,6.59101832,143.88,143.87,0.02]
[1750931834758,11.74280672,143.88,143.87,0.02]
[1750931836765,11.60064515,143.88,143.87,0.02]
[1750931837772,5.1517884,143.89,143.87,0.02]
[1750931838768,5.1517884,143.89,143.87,88.72]
[1750931839269,5.1517884,143.9,143.87,88.72]
[1750931839458,5.1517884,143.89,143.87,88.72]
[1750931839659,5.1517884,143.9,143.87,88.72]
[1750931839882,5.1517884,143.89,143.87,88.72]
[1750931840081,5.1517884,143.9,143.87,88.72]
[1750931840387,6.59101832,143.91,143.87,88.72]
[1750931840388,5.1517884,143.89,143.87,88.72]
[1750931840566,5.1517884,143.9,143.87,88.72]
[1750931840762,5.1517884,143.89,143.88,18.64964886]
[1750931840971,19.21050841,143.95,143.88,136.10964886]
[1750931840972,11.60064515,143.92,143.88,136.10964886]
[1750931841167,5.1517884,143.91,143.88,136.10964886]
[1750931842078,5.1517884,143.93,143.9,18.64964886]
[1750931842272,5.1517884,143.93,143.92,18.64964886]
[1750931842460,5.1517884,143.94,143.92,18.64964886]
[1750931844587,5.1517884,143.94,143.91,6.32]
[1750931847880,5.1517884,143.94,143.91,95.02]
[1750931848495,11.64064515,143.95,143.91,95.02]
[1750931848682,5.1917884,143.95,143.92,18.64964886]
[1750931849488,0.04,143.95,143.92,18.64964886]
[1750931849994,0.04,143.95,143.92,47.38964886]
[1750931850502,0.04,143.95,143.92,136.08964886]
[1750931856385,0.04,143.95,143.92,284.98964886]
[1750931856785,0.04,143.95,143.93,0.69478218]
[1750931856985,0.04,143.95,143.94,30.3292]
[1750931859484,0.04,143.95,143.94,18.64964886]
[1750931862807,0.04,143.95,143.94,107.34964886]
[1750931876436,0.04,143.95,143.94,88.7]
[1750931877820,0.04,143.95,143.91,95.02]
[1750931878020,0.04,143.95,143.91,88.7]
[1750931878209,0.04,143.95,143.9,6.3]
[1750931881335,6.48885675,143.95,143.9,6.3]
[1750931881526,0.14216157,143.94,143.9,6.3]
[1750931884131,11.74280672,143.94,143.9,6.3]
[1750931885122,13.30340672,143.94,143.9,6.3]
[1750931885323,5.1517884,143.93,143.9,6.3]
[1750931885531,13.30340672,143.94,143.9,6.3]
[1750931891048,5.1517884,143.93,143.9,6.3]
[1750931891420,13.30340672,143.94,143.9,6.3]
[1750931894027,6.85454997,143.94,143.9,6.3]
[1750931894540,1.70276157,143.94,143.9,6.3]
[1750931895240,1.70276157,143.94,143.9,95.0]
[1750931895840,0.14216157,143.94,143.9,95.0]
[1750931896432,11.64064515,143.95,143.9,95.0]
[1750931897037,0.14216157,143.94,143.9,95.0]
[1750931897246,11.74280672,143.94,143.9,95.0]
[1750931899352,6.59101832,143.94,143.9,95.0]
[1750931901035,0.14216157,143.94,143.9,95.0]
[1750931902449,6.48885675,143.95,143.9,95.0]
[1750931902646,0.14216157,143.94,143.9,95.0]
[1750931905363,6.59101832,143.94,143.9,95.0]
[1750931905963,0.14216157,143.94,143.9,95.0]
[1750931906775,11.64064515,143.95,143.9,95.0]
[1750931910654,5.1917884,143.95,143.91,18.64964886]
[1750931910950,0.04,143.95,143.91,18.64964886]
[1750931911152,5.19773126,143.95,143.91,18.64964886]
[1750931911556,11.64489534,143.95,143.91,18.64964886]
[1750931911763,5.19773126,143.95,143.91,18.64964886]
[1750931912146,0.04,143.95,143.9,95.0]
[1750931914556,0.18216157,143.95,143.9,95.0]
[1750931917454,0.14216157,143.93,143.9,95.0]
[1750931918859,0.14216157,143.93,143.9,6.3]
[1750931924478,6.47046494,143.91,143.9,6.3]
[1750931924682,11.64683689,143.91,143.9,95.0]
[1750931927084,5.17637195,143.91,143.9,81.96993492]
[1750931927751,5.17637195,143.91,143.87,88.24993492]
[1750931927951,5.17637195,143.9,143.87,88.24993492]
[1750931928148,5.17637195,143.91,143.87,88.24993492]
[1750931928375,5.17637195,143.9,143.87,88.24993492]
[1750931928581,5.17637195,143.91,143.87,88.24993492]
[1750931928756,5.17637195,143.9,143.87,88.24993492]
[1750931928958,5.17637195,143.91,143.87,88.24993492]
[1750931929174,5.17637195,143.9,143.87,88.24993492]
[1750931929365,5.17637195,143.91,143.87,88.24993492]
[1750931929677,5.17637195,143.9,143.87,88.24993492]
[1750931929863,5.17637195,143.91,143.87,88.24993492]
[1750931930196,5.17637195,143.9,143.87,88.24993492]
[1750931930373,5.17637195,143.91,143.87,88.24993492]
[1750931930679,5.17637195,143.9,143.87,88.24993492]
[1750931930877,5.17637195,143.91,143.87,88.24993492]
[1750931931077,5.17637195,143.9,143.87,88.24993492]
[1750931931370,5.17637195,143.91,143.87,88.24993492]
[1750931931575,5.17637195,143.9,143.87,88.24993492]
[1750931931778,5.17637195,143.91,143.87,88.24993492]
[1750931931963,5.17637195,143.9,143.87,88.24993492]
[1750931932164,5.17637195,143.91,143.87,88.24993492]
[1750931932368,5.17637195,143.9,143.87,88.24993492]
[1750931932672,5.17637195,143.91,143.87,88.24993492]
[1750931932854,5.17637195,143.9,143.87,88.24993492]
[1750931933053,5.17637195,143.91,143.87,88.24993492]
[1750931933254,5.17637195,143.9,143.87,88.24993492]
[1750931933456,5.17637195,143.91,143.87,88.24993492]
[1750931933662,5.17637195,143.9,143.87,88.24993492]
[1750931933877,5.17637195,143.91,143.87,88.24993492]
[1750931934075,5.17637195,143.9,143.87,88.24993492]
[1750931934269,5.17637195,143.91,143.87,88.24993492]
[1750931934470,5.17637195,143.9,143.87,88.24993492]
[1750931934670,5.17637195,143.91,143.87,88.24993492]
[1750931934870,5.17637195,143.9,143.87,88.24993492]
[1750931935189,5.17637195,143.91,143.87,88.24993492]
[1750931935372,5.17637195,143.9,143.87,88.24993492]
[1750931935556,5.17637195,143.91,143.87,88.24993492]
[1750931935752,5.17637195,143.9,143.87,88.24993492]
[1750931935968,5.17637195,143.91,143.87,88.24993492]
[1750931936163,5.17637195,143.9,143.87,88.24993492]
[1750931936365,5.17637195,143.91,143.87,88.24993492]
[1750931936572,5.17637195,143.9,143.87,88.24993492]
[1750931936773,0.14216157,143.91,143.87,88.24993492]
[1750931936973,5.17637195,143.9,143.87,88.24993492]
[1750931937174,5.17637195,143.89,143.87,88.24993492]
[1750931938069,11.64516389,143.91,143.87,116.90993492]
[1750931938270,5.17637195,143.9,143.87,116.90993492]
[1750931939466,5.17637195,143.89,143.87,116.90993492]
[1750931939673,5.17637195,143.9,143.87,116.90993492]
[1750931939889,5.17637195,143.89,143.87,116.90993492]
[1750931940091,5.17637195,143.9,143.87,116.90993492]
[1750931940467,5.17637195,143.89,143.87,116.90993492]
[1750931940668,5.17637195,143.9,143.87,116.90993492]
[1750931940868,5.17637195,143.89,143.87,116.90993492]
[1750931941169,5.17637195,143.9,143.87,116.90993492]
[1750931941376,5.17637195,143.89,143.87,116.90993492]
[1750931941584,5.17637195,143.9,143.87,116.90993492]
[1750931941785,5.17637195,143.89,143.87,116.90993492]
[1750931941979,5.17637195,143.9,143.87,116.90993492]
[1750931942179,6.46879194,143.91,143.87,116.90993492]
[1750931942180,5.17637195,143.89,143.87,116.90993492]
[1750931942499,5.17637195,143.9,143.87,116.90993492]
[1750931942697,5.17637195,143.89,143.87,116.90993492]
[1750931942896,5.17637195,143.9,143.87,116.90993492]
[1750931943097,5.17637195,143.89,143.87,116.90993492]
[1750931943393,5.17637195,143.9,143.87,116.90993492]
[1750931943588,5.17637195,143.89,143.87,116.90993492]
[1750931943797,6.46879194,143.91,143.87,116.90993492]
[1750931943798,5.17637195,143.9,143.87,116.90993492]
[1750931943988,5.17637195,143.89,143.87,116.90993492]
[1750931944192,5.17637195,143.9,143.87,116.90993492]
[1750931944394,5.17637195,143.89,143.87,116.90993492]
[1750931944588,5.17637195,143.9,143.87,116.90993492]
[1750931944773,5.17637195,143.89,143.88,18.64964886]
[1750931944974,5.17637195,143.9,143.88,18.64964886]
[1750931945175,5.17637195,143.89,143.88,18.64964886]
[1750931945378,5.17637195,143.9,143.88,18.64964886]
[1750931945584,5.17637195,143.89,143.88,100.61958378]
[1750931945895,5.17637195,143.9,143.88,100.61958378]
[1750931946098,5.17637195,143.89,143.88,100.61958378]
[1750931946284,5.17637195,143.9,143.88,100.61958378]
[1750931946487,5.17637195,143.89,143.88,100.61958378]
[1750931946688,5.17637195,143.9,143.88,100.61958378]
[1750931946987,5.17637195,143.89,143.88,100.61958378]
[1750931947187,5.17637195,143.9,143.88,100.61958378]
[1750931947391,5.17637195,143.89,143.88,100.61958378]
[1750931947589,5.17637195,143.9,143.88,100.61958378]
[1750931947877,11.64516389,143.92,143.9,18.64964886]
[1750931948098,5.17637195,143.91,143.9,100.61958378]
[1750931949794,5.17637195,143.92,143.9,100.61958378]
[1750931949990,5.17637195,143.91,143.9,100.61958378]
[1750931950200,5.17637195,143.92,143.9,100.61958378]
[1750931950384,5.17637195,143.91,143.9,100.61958378]
[1750931950585,6.46879194,143.93,143.9,81.96993492]
[1750931950586,5.17637195,143.92,143.9,81.96993492]
[1750931950784,5.17637195,143.91,143.9,81.96993492]
[1750931950985,5.17637195,143.92,143.9,81.96993492]
[1750931951194,5.17637195,143.91,143.9,81.96993492]
[1750931951387,5.17637195,143.91,143.87,88.24993492]
[1750931951587,11.65151081,143.9,143.87,88.24993492]
[1750931951791,5.17637195,143.89,143.87,88.24993492]
[1750931951988,5.17637195,143.88,143.87,88.24993492]
[1750931952181,5.17637195,143.89,143.87,88.24993492]
[1750931952385,5.17637195,143.88,143.87,88.24993492]
[1750931952604,5.17637195,143.88,143.87,6.28]
[1750931957310,5.17637195,143.88,143.87,88.24993492]
[1750931965710,5.17637195,143.88,143.87,116.86993492]
[1750931966708,5.17637195,143.88,143.87,88.24993492]
[1750931971512,8.62728658,143.91,143.87,88.24993492]
[1750931971714,6.47945369,143.89,143.87,88.24993492]
[1750931971916,5.18356295,143.88,143.87,88.24993492]
[1750931972298,5.18356295,143.88,143.87,106.89958378]
[1750931972727,5.18356295,143.9,143.88,18.64964886]
[1750931972896,5.18356295,143.89,143.88,47.26964886]
[1750931973503,5.18356295,143.92,143.88,129.23958378]
[1750931973727,5.18356295,143.93,143.88,129.23958378]
[1750931973937,5.18356295,143.92,143.88,129.23958378]
[1750931974091,5.18356295,143.91,143.88,129.23958378]
[1750931974295,5.18356295,143.92,143.88,129.23958378]
[1750931974722,5.18356295,143.93,143.88,129.23958378]
[1750931974908,5.18356295,143.92,143.88,129.23958378]
[1750931975099,5.18356295,143.93,143.88,129.23958378]
[1750931975302,5.18356295,143.92,143.88,129.23958378]
[1750931975526,5.18356295,143.93,143.88,129.23958378]
[1750931975705,5.18356295,143.92,143.88,129.23958378]
[1750931976026,5.18356295,143.91,143.88,129.23958378]
[1750931976317,11.66301664,143.92,143.88,129.23958378]
[1750931976519,5.18356295,143.91,143.88,129.23958378]
[1750931977126,5.18356295,143.91,143.88,47.26964886]
[1750931978934,5.18356295,143.91,143.88,18.64964886]
[1750931979118,5.18356295,143.91,143.87,36.4083]
[1750931979325,5.18356295,143.91,143.87,24.92964886]
[1750931979732,5.18356295,143.91,143.87,6.28]
[1750931979930,11.66301664,143.9,143.87,6.28]
[1750931980245,5.18356295,143.89,143.87,6.28]
[1750931989933,5.18356295,143.89,143.87,88.24993492]
[1750931992529,6.47945369,143.9,143.87,88.24993492]
[1750931992530,5.18356295,143.88,143.87,88.24993492]
[1750931992729,5.18356295,143.89,143.87,88.24993492]
[1750931992929,5.18356295,143.88,143.87,88.24993492]
[1750931993138,5.18356295,143.89,143.87,88.24993492]
[1750931993450,5.18356295,143.88,143.87,88.24993492]
[1750931993617,5.18356295,143.89,143.87,88.24993492]
[1750931993821,5.18356295,143.88,143.87,88.24993492]
[1750931994159,5.18356295,143.89,143.87,88.24993492]
[1750931994354,5.18356295,143.88,143.87,88.24993492]
[1750931994649,5.18356295,143.89,143.87,88.24993492]
[1750931994852,5.18356295,143.88,143.87,88.24993492]
[1750931995023,5.18356295,143.89,143.87,88.24993492]
[1750931995229,5.18356295,143.88,143.87,88.24993492]
[1750931995524,5.18356295,143.89,143.87,88.24993492]
[1750931995724,5.18356295,143.88,143.87,88.24993492]
[1750931995918,5.18356295,143.89,143.87,88.24993492]
[1750931998626,5.18356295,143.88,143.87,88.24993492]
[1750931998827,5.18356295,143.89,143.87,88.24993492]
[1750931999026,5.18356295,143.88,143.87,88.24993492]
[1750931999228,5.18356295,143.89,143.87,88.24993492]
[1750931999528,5.18356295,143.88,143.87,88.24993492]
[1750931999825,5.18356295,143.89,143.87,88.24993492]
[1750932001151,5.18356295,143.88,143.87,88.24993492]
[1750932001445,5.18356295,143.89,143.87,88.24993492]
[1750932001651,5.18356295,143.88,143.87,88.24993492]
[1750932001860,5.18356295,143.89,143.87,88.24993492]
[1750932002155,5.18356295,143.88,143.87,88.24993492]
[1750932004446,5.18356295,143.89,143.87,88.24993492]
[1750932004653,5.18356295,143.88,143.87,88.24993492]
[1750932004955,6.47945369,143.9,143.87,88.24993492]
[1750932004956,5.18356295,143.89,143.87,88.24993492]
[1750932005124,5.18356295,143.88,143.87,88.24993492]
[1750932005447,11.66301664,143.91,143.87,88.24993492]
[1750932005747,5.18356295,143.9,143.88,47.24964886]
[1750932005926,5.18356295,143.91,143.88,47.24964886]
[1750932006125,5.18356295,143.9,143.87,116.84993492]
[1750932006332,5.18356295,143.89,143.87,116.84993492]
[1750932006557,5.18356295,143.9,143.87,88.24993492]
[1750932006728,5.18356295,143.89,143.87,88.24993492]
[1750932007550,6.47945369,143.9,143.87,88.24993492]
[1750932007551,5.18356295,143.88,143.87,88.24993492]
[1750932007752,5.18356295,143.89,143.87,88.24993492]
[1750932008045,5.18356295,143.88,143.87,6.28]
[1750932008251,6.47945369,143.9,143.87,6.28]
[1750932008252,5.18356295,143.89,143.87,6.28]
[1750932009441,11.66301664,143.9,143.87,6.28]
[1750932009756,5.18356295,143.89,143.87,6.28]
[1750932010052,5.18356295,143.9,143.87,6.28]
[1750932010264,5.18356295,143.89,143.87,6.28]
[1750932010430,5.18356295,143.9,143.87,6.28]
[1750932010627,5.18356295,143.89,143.87,6.28]
[1750932010853,5.18356295,143.9,143.87,6.28]
[1750932011042,5.18356295,143.89,143.87,6.28]
[1750932011243,5.18356295,143.9,143.87,6.28]
[1750932011443,5.18356295,143.89,143.87,6.28]
[1750932011746,5.18356295,143.9,143.87,6.28]
[1750932011941,5.18356295,143.91,143.87,6.28]
[1750932012141,5.18356295,143.9,143.87,6.28]
[1750932012341,5.18356295,143.91,143.88,18.64964886]
[1750932012546,5.18356295,143.91,143.88,47.24964886]
[1750932013759,5.18356295,143.91,143.87,88.24993492]
[1750932014061,5.18356295,143.9,143.87,88.24993492]
[1750932014244,5.18356295,143.89,143.87,88.24993492]
[1750932015346,5.18356295,143.88,143.87,88.24993492]
[1750932015545,5.18356295,143.89,143.87,88.24993492]
[1750932016434,5.18356295,143.88,143.87,88.24993492]
[1750932016630,5.18356295,143.89,143.87,88.24993492]
[1750932017363,5.18356295,143.88,143.87,88.24993492]
[1750932017557,5.18356295,143.89,143.87,88.24993492]
[1750932018235,5.18356295,143.88,143.87,88.24993492]
[1750932018433,5.18356295,143.89,143.87,88.24993492]
[1750932018636,5.18356295,143.88,143.87,88.24993492]
[1750932018861,5.18356295,143.89,143.87,88.24993492]
[1750932019160,6.47945369,143.9,143.87,88.24993492]
[1750932019161,5.18356295,143.88,143.87,88.24993492]
[1750932019365,5.18356295,143.89,143.87,88.24993492]
[1750932019550,5.18356295,143.88,143.87,88.24993492]
[1750932019743,5.18356295,143.89,143.87,88.24993492]
[1750932019952,5.18356295,143.88,143.87,88.24993492]
[1750932020150,5.18356295,143.89,143.87,88.24993492]
[1750932020368,5.18356295,143.88,143.87,88.24993492]
[1750932020566,5.18356295,143.89,143.87,88.24993492]
[1750932020862,5.18356295,143.88,143.87,88.24993492]
[1750932021069,5.18356295,143.89,143.87,88.24993492]
[1750932021244,5.18356295,143.88,143.87,88.24993492]
[1750932021846,11.66301664,143.88,143.87,88.24993492]
[1750932025371,11.66301664,143.88,143.87,6.28]
[1750932030178,5.18356295,143.88,143.87,6.28]
[1750932031475,5.18356295,143.88,143.87,88.24993492]
[1750932032052,5.18356295,143.88,143.87,106.89958378]
[1750932032873,5.18356295,143.89,143.87,106.89958378]
[1750932033073,5.18356295,143.88,143.87,135.47958378]
[1750932033290,5.18356295,143.89,143.88,18.64964886]
[1750932035667,5.18356295,143.9,143.88,18.64964886]
[1750932035972,5.18356295,143.89,143.88,18.64964886]
[1750932036278,5.18356295,143.9,143.88,18.64964886]
[1750932036456,5.18356295,143.89,143.88,18.64964886]
[1750932036664,5.18356295,143.9,143.88,18.64964886]
[1750932036859,5.18356295,143.89,143.88,18.64964886]
[1750932037172,5.18356295,143.9,143.88,100.61958378]
[1750932037381,5.18356295,143.89,143.88,100.61958378]
[1750932037576,6.47945369,143.91,143.88,81.96993492]
[1750932037577,5.18356295,143.9,143.88,81.96993492]
[1750932037875,5.32572452,143.89,143.87,6.28]
[1750932038073,5.18356295,143.88,143.87,6.28]
[1750932039777,11.66301664,143.88,143.87,6.28]
[1750932039975,5.18356295,143.88,143.87,6.28]
[1750932041070,11.66301664,143.88,143.87,6.28]
[1750932041272,11.80517821,143.88,143.87,6.28]
[1750932044857,11.66301664,143.88,143.87,6.28]
[1750932046757,5.18356295,143.88,143.87,6.28]
[1750932047179,11.66301664,143.88,143.87,6.28]
[1750932047378,5.18356295,143.88,143.87,6.28]
[1750932047772,11.66301664,143.88,143.87,6.28]
[1750932052882,5.18356295,143.88,143.87,6.28]
[1750932053075,11.66301664,143.88,143.87,6.28]
[1750932057481,5.18356295,143.88,143.87,24.92964886]
[1750932057682,5.18356295,143.9,143.87,135.47958378]
[1750932057893,5.18356295,143.89,143.87,135.47958378]
[1750932058198,5.18356295,143.9,143.87,135.47958378]
[1750932058380,6.47945369,143.91,143.87,135.47958378]
[1750932058381,5.18356295,143.89,143.88,18.64964886]
[1750932058577,5.18356295,143.9,143.88,18.64964886]
[1750932058896,6.47945369,143.91,143.88,18.64964886]
[1750932058897,5.18356295,143.89,143.88,18.64964886]
[1750932059100,5.18356295,143.9,143.88,18.64964886]
[1750932059302,5.18356295,143.89,143.88,18.64964886]
[1750932059603,5.18356295,143.9,143.88,18.64964886]
[1750932059785,5.18356295,143.89,143.88,18.64964886]
[1750932059982,5.18356295,143.9,143.88,18.64964886]
[1750932060182,5.18356295,143.89,143.88,18.64964886]
[1750932060401,5.18356295,143.9,143.88,18.64964886]